{"text_format":"3","workbook":"xlsx","n_sheets":3,"sheets":["לוח זמנים יומי","מתזמן האירועים","מרווחי זמן"],"not_rendered":{"defined_names":21},"read":"whole","date_system":"1900"}

{"sheet":"לוח זמנים יומי","index":0,"n_rows":76,"n_cols":13,"rows_kept":76,"merged":[[0,1,0,2],[1,1,5,2],[2,12,4,12],[3,7,4,7],[5,12,7,12],[6,1,8,2],[8,12,10,12],[9,7,10,7],[10,1,10,2],[11,12,13,12],[14,12,16,12],[15,7,16,7],[17,12,19,12],[18,1,18,2],[20,12,22,12],[21,7,22,7],[23,12,25,12],[24,1,24,2],[25,1,25,2],[26,7,27,7],[26,12,28,12],[29,12,31,12],[31,7,32,7],[32,12,34,12]]}
[null,"לוח זמנים יומי"]
[null,{"$f":"IFERROR(DAY(DateVal),\"\")","v":23},null,null,"שעה",{"$f":"IFERROR(UPPER(TEXT(DATE(ReportYear,MonthNumber,ReportDay),\"d mmmm yyyy\")),\"\")","v":"23 JUNE 2022"},null,"מבט מהיר על השבוע",{"$nulls":3},"הערות / רשימת משימות לביצוע"]
[{"$nulls":4},"שעה","תיאור",null,{"$f":"IFERROR(TEXT(DATEVALUE(DateVal)+1,\"dddd\"),\"\")","v":"Friday"},{"$f":"IFERROR(INDEX(מתזמן_האירועים[],MATCH($H$6&\"|\"&ROW(A1),מתזמן_האירועים[ערך ייחודי (מחושב)],0),2),\"\")","v":""},{"$f":"IFERROR(INDEX(מתזמן_האירועים[],MATCH($H$6&\"|\"&ROW(A1),מתזמן_האירועים[ערך ייחודי (מחושב)],0),3),\"\")","v":""},null,null,"להביא ניקוי יבש"]
[{"$nulls":4},{"$f":"'מרווחי זמן'!E3","v":"06:00:00"},{"$f":"IFERROR(INDEX(מתזמן_האירועים[],MATCH(DATEVALUE(DateVal)&לוח_זמנים_יומי[[#This Row],[שעה]],LookUpDateAndTime,0),3),\"\")","v":"השכמה"},null,{"$f":"IFERROR(TEXT(DATEVALUE(DateVal)+1,\"d\"),\"\")","v":"24"},{"$f":"IFERROR(INDEX(מתזמן_האירועים[],MATCH($H$6&\"|\"&ROW(A2),מתזמן_האירועים[ערך ייחודי (מחושב)],0),2),\"\")","v":"06:30:00"},{"$f":"IFERROR(INDEX(מתזמן_האירועים[],MATCH($H$6&\"|\"&ROW(A2),מתזמן_האירועים[ערך ייחודי (מחושב)],0),3),\"\")","v":"ארוחת בוקר"}]
[{"$nulls":4},{"$f":"'מרווחי זמן'!E4","v":"06:15:00"},{"$f":"IFERROR(INDEX(מתזמן_האירועים[],MATCH(DATEVALUE(DateVal)&לוח_זמנים_יומי[[#This Row],[שעה]],LookUpDateAndTime,0),3),\"\")","v":""},null,null,{"$f":"IFERROR(INDEX(מתזמן_האירועים[],MATCH($H$6&\"|\"&ROW(A3),מתזמן_האירועים[ערך ייחודי (מחושב)],0),2),\"\")","v":""},{"$f":"IFERROR(INDEX(מתזמן_האירועים[],MATCH($H$6&\"|\"&ROW(A3),מתזמן_האירועים[ערך ייחודי (מחושב)],0),3),\"\")","v":""}]
[{"$nulls":4},{"$f":"'מרווחי זמן'!E5","v":"06:30:00"},{"$f":"IFERROR(INDEX(מתזמן_האירועים[],MATCH(DATEVALUE(DateVal)&לוח_זמנים_יומי[[#This Row],[שעה]],LookUpDateAndTime,0),3),\"\")","v":"מקלחת"},null,{"$f":"IFERROR(DateVal+1,\"\")","v":"2022-06-24"},{"$f":"IFERROR(INDEX(מתזמן_האירועים[],MATCH($H$6&\"|\"&ROW(A4),מתזמן_האירועים[ערך ייחודי (מחושב)],0),2),\"\")","v":""},{"$f":"IFERROR(INDEX(מתזמן_האירועים[],MATCH($H$6&\"|\"&ROW(A4),מתזמן_האירועים[ערך ייחודי (מחושב)],0),3),\"\")","v":""},null,null,"להקשר לחברת הכבלים"]
[null,{"$f":"IFERROR(TEXT(DateVal,\"dddd\"),\"\")","v":"Thursday"},null,null,{"$f":"'מרווחי זמן'!E6","v":"06:45:00"},{"$f":"IFERROR(INDEX(מתזמן_האירועים[],MATCH(DATEVALUE(DateVal)&לוח_זמנים_יומי[[#This Row],[שעה]],LookUpDateAndTime,0),3),\"\")","v":""},null,null,{"$f":"IFERROR(INDEX(מתזמן_האירועים[],MATCH($H$6&\"|\"&ROW(A5),מתזמן_האירועים[ערך ייחודי (מחושב)],0),2),\"\")","v":""},{"$f":"IFERROR(INDEX(מתזמן_האירועים[],MATCH($H$6&\"|\"&ROW(A5),מתזמן_האירועים[ערך ייחודי (מחושב)],0),3),\"\")","v":""}]
[{"$nulls":4},{"$f":"'מרווחי זמן'!E7","v":"07:00:00"},{"$f":"IFERROR(INDEX(מתזמן_האירועים[],MATCH(DATEVALUE(DateVal)&לוח_זמנים_יומי[[#This Row],[שעה]],LookUpDateAndTime,0),3),\"\")","v":""},null,null,{"$f":"IFERROR(INDEX(מתזמן_האירועים[],MATCH($H$6&\"|\"&ROW(A6),מתזמן_האירועים[ערך ייחודי (מחושב)],0),2),\"\")","v":""},{"$f":"IFERROR(INDEX(מתזמן_האירועים[],MATCH($H$6&\"|\"&ROW(A6),מתזמן_האירועים[ערך ייחודי (מחושב)],0),3),\"\")","v":""}]
[{"$nulls":4},{"$f":"'מרווחי זמן'!E8","v":"07:15:00"},{"$f":"IFERROR(INDEX(מתזמן_האירועים[],MATCH(DATEVALUE(DateVal)&לוח_זמנים_יומי[[#This Row],[שעה]],LookUpDateAndTime,0),3),\"\")","v":""},null,{"$f":"IFERROR(TEXT(DATEVALUE(DateVal)+2,\"dddd\"),\"\")","v":"Saturday"},{"$f":"IFERROR(INDEX(מתזמן_האירועים[],MATCH($H$12&\"|\"&ROW(A1),מתזמן_האירועים[ערך ייחודי (מחושב)],0),2),\"\")","v":""},{"$f":"IFERROR(INDEX(מתזמן_האירועים[],MATCH($H$12&\"|\"&ROW(A1),מתזמן_האירועים[ערך ייחודי (מחושב)],0),3),\"\")","v":""}]
[{"$nulls":4},{"$f":"'מרווחי זמן'!E9","v":"07:30:00"},{"$f":"IFERROR(INDEX(מתזמן_האירועים[],MATCH(DATEVALUE(DateVal)&לוח_זמנים_יומי[[#This Row],[שעה]],LookUpDateAndTime,0),3),\"\")","v":"יציאה לעבודה"},null,{"$f":"IFERROR(TEXT(DATEVALUE(DateVal)+2,\"d\"),\"\")","v":"25"},{"$f":"IFERROR(INDEX(מתזמן_האירועים[],MATCH($H$12&\"|\"&ROW(A2),מתזמן_האירועים[ערך ייחודי (מחושב)],0),2),\"\")","v":""},{"$f":"IFERROR(INDEX(מתזמן_האירועים[],MATCH($H$12&\"|\"&ROW(A2),מתזמן_האירועים[ערך ייחודי (מחושב)],0),3),\"\")","v":""}]
[null,"הצג לוח זמנים",null,null,{"$f":"'מרווחי זמן'!E10","v":"07:45:00"},{"$f":"IFERROR(INDEX(מתזמן_האירועים[],MATCH(DATEVALUE(DateVal)&לוח_זמנים_יומי[[#This Row],[שעה]],LookUpDateAndTime,0),3),\"\")","v":""},null,null,{"$f":"IFERROR(INDEX(מתזמן_האירועים[],MATCH($H$12&\"|\"&ROW(A3),מתזמן_האירועים[ערך ייחודי (מחושב)],0),2),\"\")","v":""},{"$f":"IFERROR(INDEX(מתזמן_האירועים[],MATCH($H$12&\"|\"&ROW(A3),מתזמן_האירועים[ערך ייחודי (מחושב)],0),3),\"\")","v":""}]
[{"$nulls":4},{"$f":"'מרווחי זמן'!E11","v":"08:00:00"},{"$f":"IFERROR(INDEX(מתזמן_האירועים[],MATCH(DATEVALUE(DateVal)&לוח_זמנים_יומי[[#This Row],[שעה]],LookUpDateAndTime,0),3),\"\")","v":"התחלת משמרת"},null,{"$f":"IFERROR(DateVal+2,\"\")","v":"2022-06-25"},{"$f":"IFERROR(INDEX(מתזמן_האירועים[],MATCH($H$12&\"|\"&ROW(A4),מתזמן_האירועים[ערך ייחודי (מחושב)],0),2),\"\")","v":""},{"$f":"IFERROR(INDEX(מתזמן_האירועים[],MATCH($H$12&\"|\"&ROW(A4),מתזמן_האירועים[ערך ייחודי (מחושב)],0),3),\"\")","v":""}]
[null,"שנה",null,null,{"$f":"'מרווחי זמן'!E12","v":"08:15:00"},{"$f":"IFERROR(INDEX(מתזמן_האירועים[],MATCH(DATEVALUE(DateVal)&לוח_זמנים_יומי[[#This Row],[שעה]],LookUpDateAndTime,0),3),\"\")","v":""},null,null,{"$f":"IFERROR(INDEX(מתזמן_האירועים[],MATCH($H$12&\"|\"&ROW(A5),מתזמן_האירועים[ערך ייחודי (מחושב)],0),2),\"\")","v":""},{"$f":"IFERROR(INDEX(מתזמן_האירועים[],MATCH($H$12&\"|\"&ROW(A5),מתזמן_האירועים[ערך ייחודי (מחושב)],0),3),\"\")","v":""}]
[{"$nulls":4},{"$f":"'מרווחי זמן'!E13","v":"08:30:00"},{"$f":"IFERROR(INDEX(מתזמן_האירועים[],MATCH(DATEVALUE(DateVal)&לוח_זמנים_יומי[[#This Row],[שעה]],LookUpDateAndTime,0),3),\"\")","v":""},null,null,{"$f":"IFERROR(INDEX(מתזמן_האירועים[],MATCH($H$12&\"|\"&ROW(A6),מתזמן_האירועים[ערך ייחודי (מחושב)],0),2),\"\")","v":""},{"$f":"IFERROR(INDEX(מתזמן_האירועים[],MATCH($H$12&\"|\"&ROW(A6),מתזמן_האירועים[ערך ייחודי (מחושב)],0),3),\"\")","v":""}]
[null,"חודש",null,null,{"$f":"'מרווחי זמן'!E14","v":"08:45:00"},{"$f":"IFERROR(INDEX(מתזמן_האירועים[],MATCH(DATEVALUE(DateVal)&לוח_זמנים_יומי[[#This Row],[שעה]],LookUpDateAndTime,0),3),\"\")","v":""},null,{"$f":"IFERROR(TEXT(DATEVALUE(DateVal)+3,\"dddd\"),\"\")","v":"Sunday"},{"$f":"IFERROR(INDEX(מתזמן_האירועים[],MATCH($H$18&\"|\"&ROW(A1),מתזמן_האירועים[ערך ייחודי (מחושב)],0),2),\"\")","v":""},{"$f":"IFERROR(INDEX(מתזמן_האירועים[],MATCH($H$18&\"|\"&ROW(A1),מתזמן_האירועים[ערך ייחודי (מחושב)],0),3),\"\")","v":""}]
[{"$nulls":4},{"$f":"'מרווחי זמן'!E15","v":"09:00:00"},{"$f":"IFERROR(INDEX(מתזמן_האירועים[],MATCH(DATEVALUE(DateVal)&לוח_זמנים_יומי[[#This Row],[שעה]],LookUpDateAndTime,0),3),\"\")","v":""},null,{"$f":"IFERROR(TEXT(DATEVALUE(DateVal)+3,\"d\"),\"\")","v":"26"},{"$f":"IFERROR(INDEX(מתזמן_האירועים[],MATCH($H$18&\"|\"&ROW(A2),מתזמן_האירועים[ערך ייחודי (מחושב)],0),2),\"\")","v":""},{"$f":"IFERROR(INDEX(מתזמן_האירועים[],MATCH($H$18&\"|\"&ROW(A2),מתזמן_האירועים[ערך ייחודי (מחושב)],0),3),\"\")","v":""}]
[null,"יום",null,null,{"$f":"'מרווחי זמן'!E16","v":"09:15:00"},{"$f":"IFERROR(INDEX(מתזמן_האירועים[],MATCH(DATEVALUE(DateVal)&לוח_זמנים_יומי[[#This Row],[שעה]],LookUpDateAndTime,0),3),\"\")","v":""},null,null,{"$f":"IFERROR(INDEX(מתזמן_האירועים[],MATCH($H$18&\"|\"&ROW(A3),מתזמן_האירועים[ערך ייחודי (מחושב)],0),2),\"\")","v":""},{"$f":"IFERROR(INDEX(מתזמן_האירועים[],MATCH($H$18&\"|\"&ROW(A3),מתזמן_האירועים[ערך ייחודי (מחושב)],0),3),\"\")","v":""}]
[{"$nulls":4},{"$f":"'מרווחי זמן'!E17","v":"09:30:00"},{"$f":"IFERROR(INDEX(מתזמן_האירועים[],MATCH(DATEVALUE(DateVal)&לוח_זמנים_יומי[[#This Row],[שעה]],LookUpDateAndTime,0),3),\"\")","v":""},null,{"$f":"IFERROR(DateVal+3,\"\")","v":"2022-06-26"},{"$f":"IFERROR(INDEX(מתזמן_האירועים[],MATCH($H$18&\"|\"&ROW(A4),מתזמן_האירועים[ערך ייחודי (מחושב)],0),2),\"\")","v":""},{"$f":"IFERROR(INDEX(מתזמן_האירועים[],MATCH($H$18&\"|\"&ROW(A4),מתזמן_האירועים[ערך ייחודי (מחושב)],0),3),\"\")","v":""}]
[null,"ערוך לוח זמנים",null,null,{"$f":"'מרווחי זמן'!E18","v":"09:45:00"},{"$f":"IFERROR(INDEX(מתזמן_האירועים[],MATCH(DATEVALUE(DateVal)&לוח_זמנים_יומי[[#This Row],[שעה]],LookUpDateAndTime,0),3),\"\")","v":""},null,null,{"$f":"IFERROR(INDEX(מתזמן_האירועים[],MATCH($H$18&\"|\"&ROW(A5),מתזמן_האירועים[ערך ייחודי (מחושב)],0),2),\"\")","v":""},{"$f":"IFERROR(INDEX(מתזמן_האירועים[],MATCH($H$18&\"|\"&ROW(A5),מתזמן_האירועים[ערך ייחודי (מחושב)],0),3),\"\")","v":""}]
[{"$nulls":4},{"$f":"'מרווחי זמן'!E19","v":"10:00:00"},{"$f":"IFERROR(INDEX(מתזמן_האירועים[],MATCH(DATEVALUE(DateVal)&לוח_זמנים_יומי[[#This Row],[שעה]],LookUpDateAndTime,0),3),\"\")","v":"הפסקה"},null,null,{"$f":"IFERROR(INDEX(מתזמן_האירועים[],MATCH($H$18&\"|\"&ROW(A6),מתזמן_האירועים[ערך ייחודי (מחושב)],0),2),\"\")","v":""},{"$f":"IFERROR(INDEX(מתזמן_האירועים[],MATCH($H$18&\"|\"&ROW(A6),מתזמן_האירועים[ערך ייחודי (מחושב)],0),3),\"\")","v":""}]
[null,"בחר כדי לערוך מרווחי זמן",null,null,{"$f":"'מרווחי זמן'!E20","v":"10:15:00"},{"$f":"IFERROR(INDEX(מתזמן_האירועים[],MATCH(DATEVALUE(DateVal)&לוח_זמנים_יומי[[#This Row],[שעה]],LookUpDateAndTime,0),3),\"\")","v":""},null,{"$f":"IFERROR(TEXT(DATEVALUE(DateVal)+4,\"dddd\"),\"\")","v":"Monday"},{"$f":"IFERROR(INDEX(מתזמן_האירועים[],MATCH($H$24&\"|\"&ROW(A1),מתזמן_האירועים[ערך ייחודי (מחושב)],0),2),\"\")","v":""},{"$f":"IFERROR(INDEX(מתזמן_האירועים[],MATCH($H$24&\"|\"&ROW(A1),מתזמן_האירועים[ערך ייחודי (מחושב)],0),3),\"\")","v":""}]
[{"$nulls":4},{"$f":"'מרווחי זמן'!E21","v":"10:30:00"},{"$f":"IFERROR(INDEX(מתזמן_האירועים[],MATCH(DATEVALUE(DateVal)&לוח_זמנים_יומי[[#This Row],[שעה]],LookUpDateAndTime,0),3),\"\")","v":""},null,{"$f":"IFERROR(TEXT(DATEVALUE(DateVal)+4,\"d\"),\"\")","v":"27"},{"$f":"IFERROR(INDEX(מתזמן_האירועים[],MATCH($H$24&\"|\"&ROW(A2),מתזמן_האירועים[ערך ייחודי (מחושב)],0),2),\"\")","v":""},{"$f":"IFERROR(INDEX(מתזמן_האירועים[],MATCH($H$24&\"|\"&ROW(A2),מתזמן_האירועים[ערך ייחודי (מחושב)],0),3),\"\")","v":""}]
[null,"בחר כדי להוסיף אירוע חדש",null,null,{"$f":"'מרווחי זמן'!E22","v":"10:45:00"},{"$f":"IFERROR(INDEX(מתזמן_האירועים[],MATCH(DATEVALUE(DateVal)&לוח_זמנים_יומי[[#This Row],[שעה]],LookUpDateAndTime,0),3),\"\")","v":""},null,null,{"$f":"IFERROR(INDEX(מתזמן_האירועים[],MATCH($H$24&\"|\"&ROW(A3),מתזמן_האירועים[ערך ייחודי (מחושב)],0),2),\"\")","v":""},{"$f":"IFERROR(INDEX(מתזמן_האירועים[],MATCH($H$24&\"|\"&ROW(A3),מתזמן_האירועים[ערך ייחודי (מחושב)],0),3),\"\")","v":""}]
[{"$nulls":4},{"$f":"'מרווחי זמן'!E23","v":"11:00:00"},{"$f":"IFERROR(INDEX(מתזמן_האירועים[],MATCH(DATEVALUE(DateVal)&לוח_זמנים_יומי[[#This Row],[שעה]],LookUpDateAndTime,0),3),\"\")","v":""},null,{"$f":"IFERROR(DateVal+4,\"\")","v":"2022-06-27"},{"$f":"IFERROR(INDEX(מתזמן_האירועים[],MATCH($H$24&\"|\"&ROW(A4),מתזמן_האירועים[ערך ייחודי (מחושב)],0),2),\"\")","v":""},{"$f":"IFERROR(INDEX(מתזמן_האירועים[],MATCH($H$24&\"|\"&ROW(A4),מתזמן_האירועים[ערך ייחודי (מחושב)],0),3),\"\")","v":""}]
[null,"סמן בלוח הזמנים:",null,null,{"$f":"'מרווחי זמן'!E24","v":"11:15:00"},{"$f":"IFERROR(INDEX(מתזמן_האירועים[],MATCH(DATEVALUE(DateVal)&לוח_זמנים_יומי[[#This Row],[שעה]],LookUpDateAndTime,0),3),\"\")","v":""},null,null,{"$f":"IFERROR(INDEX(מתזמן_האירועים[],MATCH($H$24&\"|\"&ROW(A5),מתזמן_האירועים[ערך ייחודי (מחושב)],0),2),\"\")","v":""},{"$f":"IFERROR(INDEX(מתזמן_האירועים[],MATCH($H$24&\"|\"&ROW(A5),מתזמן_האירועים[ערך ייחודי (מחושב)],0),3),\"\")","v":""}]
[null,"הפסקה",null,null,{"$f":"'מרווחי זמן'!E25","v":"11:30:00"},{"$f":"IFERROR(INDEX(מתזמן_האירועים[],MATCH(DATEVALUE(DateVal)&לוח_זמנים_יומי[[#This Row],[שעה]],LookUpDateAndTime,0),3),\"\")","v":""},null,{"$f":"IFERROR(TEXT(DATEVALUE(DateVal)+5,\"dddd\"),\"\")","v":"Tuesday"},{"$f":"IFERROR(INDEX(מתזמן_האירועים[],MATCH($H$29&\"|\"&ROW(A1),מתזמן_האירועים[ערך ייחודי (מחושב)],0),2),\"\")","v":""},{"$f":"IFERROR(INDEX(מתזמן_האירועים[],MATCH($H$29&\"|\"&ROW(A1),מתזמן_האירועים[ערך ייחודי (מחושב)],0),3),\"\")","v":""}]
[{"$nulls":4},{"$f":"'מרווחי זמן'!E26","v":"11:45:00"},{"$f":"IFERROR(INDEX(מתזמן_האירועים[],MATCH(DATEVALUE(DateVal)&לוח_זמנים_יומי[[#This Row],[שעה]],LookUpDateAndTime,0),3),\"\")","v":""},null,{"$f":"IFERROR(TEXT(DATEVALUE(DateVal)+5,\"d\"),\"\")","v":"28"},{"$f":"IFERROR(INDEX(מתזמן_האירועים[],MATCH($H$29&\"|\"&ROW(A2),מתזמן_האירועים[ערך ייחודי (מחושב)],0),2),\"\")","v":""},{"$f":"IFERROR(INDEX(מתזמן_האירועים[],MATCH($H$29&\"|\"&ROW(A2),מתזמן_האירועים[ערך ייחודי (מחושב)],0),3),\"\")","v":""}]
[{"$nulls":4},{"$f":"'מרווחי זמן'!E27","v":"12:00:00"},{"$f":"IFERROR(INDEX(מתזמן_האירועים[],MATCH(DATEVALUE(DateVal)&לוח_זמנים_יומי[[#This Row],[שעה]],LookUpDateAndTime,0),3),\"\")","v":"ארוחת צהריים"},null,null,{"$f":"IFERROR(INDEX(מתזמן_האירועים[],MATCH($H$29&\"|\"&ROW(A3),מתזמן_האירועים[ערך ייחודי (מחושב)],0),2),\"\")","v":""},{"$f":"IFERROR(INDEX(מתזמן_האירועים[],MATCH($H$29&\"|\"&ROW(A3),מתזמן_האירועים[ערך ייחודי (מחושב)],0),3),\"\")","v":""}]
[{"$nulls":4},{"$f":"'מרווחי זמן'!E28","v":"12:15:00"},{"$f":"IFERROR(INDEX(מתזמן_האירועים[],MATCH(DATEVALUE(DateVal)&לוח_זמנים_יומי[[#This Row],[שעה]],LookUpDateAndTime,0),3),\"\")","v":""},null,{"$f":"IFERROR(DateVal+5,\"\")","v":"2022-06-28"},{"$f":"IFERROR(INDEX(מתזמן_האירועים[],MATCH($H$29&\"|\"&ROW(A4),מתזמן_האירועים[ערך ייחודי (מחושב)],0),2),\"\")","v":""},{"$f":"IFERROR(INDEX(מתזמן_האירועים[],MATCH($H$29&\"|\"&ROW(A4),מתזמן_האירועים[ערך ייחודי (מחושב)],0),3),\"\")","v":""}]
[{"$nulls":4},{"$f":"'מרווחי זמן'!E29","v":"12:30:00"},{"$f":"IFERROR(INDEX(מתזמן_האירועים[],MATCH(DATEVALUE(DateVal)&לוח_זמנים_יומי[[#This Row],[שעה]],LookUpDateAndTime,0),3),\"\")","v":""},null,null,{"$f":"IFERROR(INDEX(מתזמן_האירועים[],MATCH($H$29&\"|\"&ROW(A5),מתזמן_האירועים[ערך ייחודי (מחושב)],0),2),\"\")","v":""},{"$f":"IFERROR(INDEX(מתזמן_האירועים[],MATCH($H$29&\"|\"&ROW(A5),מתזמן_האירועים[ערך ייחודי (מחושב)],0),3),\"\")","v":""}]
[{"$nulls":4},{"$f":"'מרווחי זמן'!E30","v":"12:45:00"},{"$f":"IFERROR(INDEX(מתזמן_האירועים[],MATCH(DATEVALUE(DateVal)&לוח_זמנים_יומי[[#This Row],[שעה]],LookUpDateAndTime,0),3),\"\")","v":""},null,{"$f":"IFERROR(TEXT(DATEVALUE(DateVal)+6,\"dddd\"),\"\")","v":"Wednesday"},{"$f":"IFERROR(INDEX(מתזמן_האירועים[],MATCH($H$34&\"|\"&ROW(A1),מתזמן_האירועים[ערך ייחודי (מחושב)],0),2),\"\")","v":""},{"$f":"IFERROR(INDEX(מתזמן_האירועים[],MATCH($H$34&\"|\"&ROW(A1),מתזמן_האירועים[ערך ייחודי (מחושב)],0),3),\"\")","v":""}]
[{"$nulls":4},{"$f":"'מרווחי זמן'!E31","v":"13:00:00"},{"$f":"IFERROR(INDEX(מתזמן_האירועים[],MATCH(DATEVALUE(DateVal)&לוח_זמנים_יומי[[#This Row],[שעה]],LookUpDateAndTime,0),3),\"\")","v":""},null,{"$f":"IFERROR(TEXT(DATEVALUE(DateVal)+6,\"d\"),\"\")","v":"29"},{"$f":"IFERROR(INDEX(מתזמן_האירועים[],MATCH($H$34&\"|\"&ROW(A2),מתזמן_האירועים[ערך ייחודי (מחושב)],0),2),\"\")","v":""},{"$f":"IFERROR(INDEX(מתזמן_האירועים[],MATCH($H$34&\"|\"&ROW(A2),מתזמן_האירועים[ערך ייחודי (מחושב)],0),3),\"\")","v":""}]
[{"$nulls":4},{"$f":"'מרווחי זמן'!E32","v":"13:15:00"},{"$f":"IFERROR(INDEX(מתזמן_האירועים[],MATCH(DATEVALUE(DateVal)&לוח_זמנים_יומי[[#This Row],[שעה]],LookUpDateAndTime,0),3),\"\")","v":""},null,null,{"$f":"IFERROR(INDEX(מתזמן_האירועים[],MATCH($H$34&\"|\"&ROW(A3),מתזמן_האירועים[ערך ייחודי (מחושב)],0),2),\"\")","v":""},{"$f":"IFERROR(INDEX(מתזמן_האירועים[],MATCH($H$34&\"|\"&ROW(A3),מתזמן_האירועים[ערך ייחודי (מחושב)],0),3),\"\")","v":""}]
[{"$nulls":4},{"$f":"'מרווחי זמן'!E33","v":"13:30:00"},{"$f":"IFERROR(INDEX(מתזמן_האירועים[],MATCH(DATEVALUE(DateVal)&לוח_זמנים_יומי[[#This Row],[שעה]],LookUpDateAndTime,0),3),\"\")","v":"שיחת ועידה"},null,{"$f":"IFERROR(DateVal+6,\"\")","v":"2022-06-29"},{"$f":"IFERROR(INDEX(מתזמן_האירועים[],MATCH($H$34&\"|\"&ROW(A4),מתזמן_האירועים[ערך ייחודי (מחושב)],0),2),\"\")","v":""},{"$f":"IFERROR(INDEX(מתזמן_האירועים[],MATCH($H$34&\"|\"&ROW(A4),מתזמן_האירועים[ערך ייחודי (מחושב)],0),3),\"\")","v":""}]
[{"$nulls":4},{"$f":"'מרווחי זמן'!E34","v":"13:45:00"},{"$f":"IFERROR(INDEX(מתזמן_האירועים[],MATCH(DATEVALUE(DateVal)&לוח_זמנים_יומי[[#This Row],[שעה]],LookUpDateAndTime,0),3),\"\")","v":""},null,null,{"$f":"IFERROR(INDEX(מתזמן_האירועים[],MATCH($H$34&\"|\"&ROW(A5),מתזמן_האירועים[ערך ייחודי (מחושב)],0),2),\"\")","v":""},{"$f":"IFERROR(INDEX(מתזמן_האירועים[],MATCH($H$34&\"|\"&ROW(A5),מתזמן_האירועים[ערך ייחודי (מחושב)],0),3),\"\")","v":""}]
[{"$nulls":4},{"$f":"'מרווחי זמן'!E35","v":"14:00:00"},{"$f":"IFERROR(INDEX(מתזמן_האירועים[],MATCH(DATEVALUE(DateVal)&לוח_זמנים_יומי[[#This Row],[שעה]],LookUpDateAndTime,0),3),\"\")","v":""}]
[{"$nulls":4},{"$f":"'מרווחי זמן'!E36","v":"14:15:00"},{"$f":"IFERROR(INDEX(מתזמן_האירועים[],MATCH(DATEVALUE(DateVal)&לוח_זמנים_יומי[[#This Row],[שעה]],LookUpDateAndTime,0),3),\"\")","v":""}]
[{"$nulls":4},{"$f":"'מרווחי זמן'!E37","v":"14:30:00"},{"$f":"IFERROR(INDEX(מתזמן_האירועים[],MATCH(DATEVALUE(DateVal)&לוח_זמנים_יומי[[#This Row],[שעה]],LookUpDateAndTime,0),3),\"\")","v":""}]
[{"$nulls":4},{"$f":"'מרווחי זמן'!E38","v":"14:45:00"},{"$f":"IFERROR(INDEX(מתזמן_האירועים[],MATCH(DATEVALUE(DateVal)&לוח_זמנים_יומי[[#This Row],[שעה]],LookUpDateAndTime,0),3),\"\")","v":""}]
[{"$nulls":4},{"$f":"'מרווחי זמן'!E39","v":"15:00:00"},{"$f":"IFERROR(INDEX(מתזמן_האירועים[],MATCH(DATEVALUE(DateVal)&לוח_זמנים_יומי[[#This Row],[שעה]],LookUpDateAndTime,0),3),\"\")","v":"הפסקה"}]
[{"$nulls":4},{"$f":"'מרווחי זמן'!E40","v":"15:15:00"},{"$f":"IFERROR(INDEX(מתזמן_האירועים[],MATCH(DATEVALUE(DateVal)&לוח_זמנים_יומי[[#This Row],[שעה]],LookUpDateAndTime,0),3),\"\")","v":""}]
[{"$nulls":4},{"$f":"'מרווחי זמן'!E41","v":"15:30:00"},{"$f":"IFERROR(INDEX(מתזמן_האירועים[],MATCH(DATEVALUE(DateVal)&לוח_זמנים_יומי[[#This Row],[שעה]],LookUpDateAndTime,0),3),\"\")","v":""}]
[{"$nulls":4},{"$f":"'מרווחי זמן'!E42","v":"15:45:00"},{"$f":"IFERROR(INDEX(מתזמן_האירועים[],MATCH(DATEVALUE(DateVal)&לוח_זמנים_יומי[[#This Row],[שעה]],LookUpDateAndTime,0),3),\"\")","v":""}]
[{"$nulls":4},{"$f":"'מרווחי זמן'!E43","v":"16:00:00"},{"$f":"IFERROR(INDEX(מתזמן_האירועים[],MATCH(DATEVALUE(DateVal)&לוח_זמנים_יומי[[#This Row],[שעה]],LookUpDateAndTime,0),3),\"\")","v":""}]
[{"$nulls":4},{"$f":"'מרווחי זמן'!E44","v":"16:15:00"},{"$f":"IFERROR(INDEX(מתזמן_האירועים[],MATCH(DATEVALUE(DateVal)&לוח_זמנים_יומי[[#This Row],[שעה]],LookUpDateAndTime,0),3),\"\")","v":""}]
[{"$nulls":4},{"$f":"'מרווחי זמן'!E45","v":"16:30:00"},{"$f":"IFERROR(INDEX(מתזמן_האירועים[],MATCH(DATEVALUE(DateVal)&לוח_זמנים_יומי[[#This Row],[שעה]],LookUpDateAndTime,0),3),\"\")","v":""}]
[{"$nulls":4},{"$f":"'מרווחי זמן'!E46","v":"16:45:00"},{"$f":"IFERROR(INDEX(מתזמן_האירועים[],MATCH(DATEVALUE(DateVal)&לוח_זמנים_יומי[[#This Row],[שעה]],LookUpDateAndTime,0),3),\"\")","v":""}]
[{"$nulls":4},{"$f":"'מרווחי זמן'!E47","v":"17:00:00"},{"$f":"IFERROR(INDEX(מתזמן_האירועים[],MATCH(DATEVALUE(DateVal)&לוח_זמנים_יומי[[#This Row],[שעה]],LookUpDateAndTime,0),3),\"\")","v":"בית"}]
[{"$nulls":4},{"$f":"'מרווחי זמן'!E48","v":"17:15:00"},{"$f":"IFERROR(INDEX(מתזמן_האירועים[],MATCH(DATEVALUE(DateVal)&לוח_זמנים_יומי[[#This Row],[שעה]],LookUpDateAndTime,0),3),\"\")","v":""}]
[{"$nulls":4},{"$f":"'מרווחי זמן'!E49","v":"17:30:00"},{"$f":"IFERROR(INDEX(מתזמן_האירועים[],MATCH(DATEVALUE(DateVal)&לוח_זמנים_יומי[[#This Row],[שעה]],LookUpDateAndTime,0),3),\"\")","v":""}]
[{"$nulls":4},{"$f":"'מרווחי זמן'!E50","v":"17:45:00"},{"$f":"IFERROR(INDEX(מתזמן_האירועים[],MATCH(DATEVALUE(DateVal)&לוח_זמנים_יומי[[#This Row],[שעה]],LookUpDateAndTime,0),3),\"\")","v":""}]
[{"$nulls":4},{"$f":"'מרווחי זמן'!E51","v":"18:00:00"},{"$f":"IFERROR(INDEX(מתזמן_האירועים[],MATCH(DATEVALUE(DateVal)&לוח_זמנים_יומי[[#This Row],[שעה]],LookUpDateAndTime,0),3),\"\")","v":"אימון כדורגל"}]
[{"$nulls":4},{"$f":"'מרווחי זמן'!E52","v":"18:15:00"},{"$f":"IFERROR(INDEX(מתזמן_האירועים[],MATCH(DATEVALUE(DateVal)&לוח_זמנים_יומי[[#This Row],[שעה]],LookUpDateAndTime,0),3),\"\")","v":""}]
[{"$nulls":4},{"$f":"'מרווחי זמן'!E53","v":"18:30:00"},{"$f":"IFERROR(INDEX(מתזמן_האירועים[],MATCH(DATEVALUE(DateVal)&לוח_זמנים_יומי[[#This Row],[שעה]],LookUpDateAndTime,0),3),\"\")","v":""}]
[{"$nulls":4},{"$f":"'מרווחי זמן'!E54","v":"18:45:00"},{"$f":"IFERROR(INDEX(מתזמן_האירועים[],MATCH(DATEVALUE(DateVal)&לוח_זמנים_יומי[[#This Row],[שעה]],LookUpDateAndTime,0),3),\"\")","v":""}]
[{"$nulls":4},{"$f":"'מרווחי זמן'!E55","v":"19:00:00"},{"$f":"IFERROR(INDEX(מתזמן_האירועים[],MATCH(DATEVALUE(DateVal)&לוח_זמנים_יומי[[#This Row],[שעה]],LookUpDateAndTime,0),3),\"\")","v":""}]
[{"$nulls":4},{"$f":"'מרווחי זמן'!E56","v":"19:15:00"},{"$f":"IFERROR(INDEX(מתזמן_האירועים[],MATCH(DATEVALUE(DateVal)&לוח_זמנים_יומי[[#This Row],[שעה]],LookUpDateAndTime,0),3),\"\")","v":""}]
[{"$nulls":4},{"$f":"'מרווחי זמן'!E57","v":"19:30:00"},{"$f":"IFERROR(INDEX(מתזמן_האירועים[],MATCH(DATEVALUE(DateVal)&לוח_זמנים_יומי[[#This Row],[שעה]],LookUpDateAndTime,0),3),\"\")","v":""}]
[{"$nulls":4},{"$f":"'מרווחי זמן'!E58","v":"19:45:00"},{"$f":"IFERROR(INDEX(מתזמן_האירועים[],MATCH(DATEVALUE(DateVal)&לוח_זמנים_יומי[[#This Row],[שעה]],LookUpDateAndTime,0),3),\"\")","v":""}]
[{"$nulls":4},{"$f":"'מרווחי זמן'!E59","v":"20:00:00"},{"$f":"IFERROR(INDEX(מתזמן_האירועים[],MATCH(DATEVALUE(DateVal)&לוח_זמנים_יומי[[#This Row],[שעה]],LookUpDateAndTime,0),3),\"\")","v":""}]
[{"$nulls":4},{"$f":"'מרווחי זמן'!E60","v":"20:15:00"},{"$f":"IFERROR(INDEX(מתזמן_האירועים[],MATCH(DATEVALUE(DateVal)&לוח_זמנים_יומי[[#This Row],[שעה]],LookUpDateAndTime,0),3),\"\")","v":""}]
[{"$nulls":4},{"$f":"'מרווחי זמן'!E61","v":"20:30:00"},{"$f":"IFERROR(INDEX(מתזמן_האירועים[],MATCH(DATEVALUE(DateVal)&לוח_זמנים_יומי[[#This Row],[שעה]],LookUpDateAndTime,0),3),\"\")","v":""}]
[{"$nulls":4},{"$f":"'מרווחי זמן'!E62","v":"20:45:00"},{"$f":"IFERROR(INDEX(מתזמן_האירועים[],MATCH(DATEVALUE(DateVal)&לוח_זמנים_יומי[[#This Row],[שעה]],LookUpDateAndTime,0),3),\"\")","v":""}]
[{"$nulls":4},{"$f":"'מרווחי זמן'!E63","v":"21:00:00"},{"$f":"IFERROR(INDEX(מתזמן_האירועים[],MATCH(DATEVALUE(DateVal)&לוח_זמנים_יומי[[#This Row],[שעה]],LookUpDateAndTime,0),3),\"\")","v":""}]
[{"$nulls":4},{"$f":"'מרווחי זמן'!E64","v":""},{"$f":"IFERROR(INDEX(מתזמן_האירועים[],MATCH(DATEVALUE(DateVal)&לוח_זמנים_יומי[[#This Row],[שעה]],LookUpDateAndTime,0),3),\"\")","v":""}]
[{"$nulls":4},{"$f":"'מרווחי זמן'!E65","v":""},{"$f":"IFERROR(INDEX(מתזמן_האירועים[],MATCH(DATEVALUE(DateVal)&לוח_זמנים_יומי[[#This Row],[שעה]],LookUpDateAndTime,0),3),\"\")","v":""}]
[{"$nulls":4},{"$f":"'מרווחי זמן'!E66","v":""},{"$f":"IFERROR(INDEX(מתזמן_האירועים[],MATCH(DATEVALUE(DateVal)&לוח_זמנים_יומי[[#This Row],[שעה]],LookUpDateAndTime,0),3),\"\")","v":""}]
[{"$nulls":4},{"$f":"'מרווחי זמן'!E67","v":""},{"$f":"IFERROR(INDEX(מתזמן_האירועים[],MATCH(DATEVALUE(DateVal)&לוח_זמנים_יומי[[#This Row],[שעה]],LookUpDateAndTime,0),3),\"\")","v":""}]
[{"$nulls":4},{"$f":"'מרווחי זמן'!E68","v":""},{"$f":"IFERROR(INDEX(מתזמן_האירועים[],MATCH(DATEVALUE(DateVal)&לוח_זמנים_יומי[[#This Row],[שעה]],LookUpDateAndTime,0),3),\"\")","v":""}]
[{"$nulls":4},{"$f":"'מרווחי זמן'!E69","v":""},{"$f":"IFERROR(INDEX(מתזמן_האירועים[],MATCH(DATEVALUE(DateVal)&לוח_זמנים_יומי[[#This Row],[שעה]],LookUpDateAndTime,0),3),\"\")","v":""}]
[{"$nulls":4},{"$f":"'מרווחי זמן'!E70","v":""},{"$f":"IFERROR(INDEX(מתזמן_האירועים[],MATCH(DATEVALUE(DateVal)&לוח_זמנים_יומי[[#This Row],[שעה]],LookUpDateAndTime,0),3),\"\")","v":""}]
[{"$nulls":4},{"$f":"'מרווחי זמן'!E71","v":""},{"$f":"IFERROR(INDEX(מתזמן_האירועים[],MATCH(DATEVALUE(DateVal)&לוח_זמנים_יומי[[#This Row],[שעה]],LookUpDateAndTime,0),3),\"\")","v":""}]
[{"$nulls":4},{"$f":"'מרווחי זמן'!E72","v":""},{"$f":"IFERROR(INDEX(מתזמן_האירועים[],MATCH(DATEVALUE(DateVal)&לוח_זמנים_יומי[[#This Row],[שעה]],LookUpDateAndTime,0),3),\"\")","v":""}]
[{"$nulls":4},{"$f":"'מרווחי זמן'!E73","v":""},{"$f":"IFERROR(INDEX(מתזמן_האירועים[],MATCH(DATEVALUE(DateVal)&לוח_זמנים_יומי[[#This Row],[שעה]],LookUpDateAndTime,0),3),\"\")","v":""}]
[{"$nulls":4},{"$f":"'מרווחי זמן'!E74","v":""},{"$f":"IFERROR(INDEX(מתזמן_האירועים[],MATCH(DATEVALUE(DateVal)&לוח_זמנים_יומי[[#This Row],[שעה]],LookUpDateAndTime,0),3),\"\")","v":""}]
[{"$nulls":4},{"$f":"'מרווחי זמן'!E75","v":""},{"$f":"IFERROR(INDEX(מתזמן_האירועים[],MATCH(DATEVALUE(DateVal)&לוח_זמנים_יומי[[#This Row],[שעה]],LookUpDateAndTime,0),3),\"\")","v":""}]

{"sheet":"מתזמן האירועים","index":1,"n_rows":15,"n_cols":8,"rows_kept":15,"merged":[[0,1,0,2],[1,1,4,2],[5,1,6,2],[7,1,7,2]]}
[null,"מתזמן האירועים"]
[null,{"$f":"DAY(DateVal)","v":23},null,null,"תאריך","שעה","תיאור","ערך ייחודי (מחושב)"]
[{"$nulls":4},{"$f":"TODAY()","v":"2022-06-23"},"06:00:00","השכמה",{"$f":"מתזמן_האירועים[[#This Row],[תאריך]]&\"|\"&COUNTIF($E$3:E3,E3)","v":"44735|1"}]
[{"$nulls":4},{"$f":"TODAY()","v":"2022-06-23"},"06:30:00","מקלחת",{"$f":"מתזמן_האירועים[[#This Row],[תאריך]]&\"|\"&COUNTIF($E$3:E4,E4)","v":"44735|2"}]
[{"$nulls":4},"2022-06-23","07:30:00","יציאה לעבודה",{"$f":"מתזמן_האירועים[[#This Row],[תאריך]]&\"|\"&COUNTIF($E$3:E5,E5)","v":"44735|3"}]
[null,{"$f":"TEXT(DateVal,\"dddd\")","v":"Thursday"},null,null,"2022-06-23","08:00:00","התחלת משמרת",{"$f":"מתזמן_האירועים[[#This Row],[תאריך]]&\"|\"&COUNTIF($E$3:E6,E6)","v":"44735|4"}]
[{"$nulls":4},"2022-06-23","10:00:00","הפסקה",{"$f":"מתזמן_האירועים[[#This Row],[תאריך]]&\"|\"&COUNTIF($E$3:E7,E7)","v":"44735|5"}]
[null,{"$f":"DateVal","v":"23 JUNE 2022"},null,null,"2022-06-23","12:00:00","ארוחת צהריים",{"$f":"מתזמן_האירועים[[#This Row],[תאריך]]&\"|\"&COUNTIF($E$3:E8,E8)","v":"44735|6"}]
[{"$nulls":4},"2022-06-23","13:00:00","חזרה לעבודה",{"$f":"מתזמן_האירועים[[#This Row],[תאריך]]&\"|\"&COUNTIF($E$3:E9,E9)","v":"44735|7"}]
[null,"בחר כדי לערוך מרווחי זמן",null,null,"2022-06-23","13:30:00","שיחת ועידה",{"$f":"מתזמן_האירועים[[#This Row],[תאריך]]&\"|\"&COUNTIF($E$3:E10,E10)","v":"44735|8"}]
[{"$nulls":4},"2022-06-23","15:00:00","הפסקה",{"$f":"מתזמן_האירועים[[#This Row],[תאריך]]&\"|\"&COUNTIF($E$3:E11,E11)","v":"44735|9"}]
[null,"בחר כדי להציג לוח זמנים יומי",null,null,"2022-06-23","17:00:00","בית",{"$f":"מתזמן_האירועים[[#This Row],[תאריך]]&\"|\"&COUNTIF($E$3:E12,E12)","v":"44735|10"}]
[{"$nulls":4},"2022-06-23","18:00:00","אימון כדורגל",{"$f":"מתזמן_האירועים[[#This Row],[תאריך]]&\"|\"&COUNTIF($E$3:E13,E13)","v":"44735|11"}]
[{"$nulls":4},{"$f":"TODAY()+1","v":"2022-06-24"},"06:30:00","ארוחת בוקר",{"$f":"מתזמן_האירועים[[#This Row],[תאריך]]&\"|\"&COUNTIF($E$3:E15,E14)","v":"44736|2"}]
[{"$nulls":4},{"$f":"TODAY()+1","v":"2022-06-24"},"07:30:00","יציאה לעבודה",{"$f":"מתזמן_האירועים[[#This Row],[תאריך]]&\"|\"&COUNTIF($E$3:E15,E15)","v":"44736|2"}]

{"sheet":"מרווחי זמן","index":2,"n_rows":75,"n_cols":5,"rows_kept":75,"merged":[[0,1,0,2],[1,1,1,2],[9,1,9,2]]}
[null,"מרווחי זמן"]
[null,"ערוך טבלת שעות",null,null,"שעה"]
[{"$nulls":4},{"$f":"שעת_התחלה","v":"06:00:00"}]
[null,"שעת התחלה","06:00:00",null,{"$f":"IFERROR(IF($E3+Increment>שעת_סיום,\"\",$E3+Increment),\"\")","v":"06:15:00"}]
[{"$nulls":4},"06:30:00"]
[null,"מרווח זמן","15 דקות",null,"06:45:00"]
[{"$nulls":4},"07:00:00"]
[null,"שעת סיום","21:00:00",null,"07:15:00"]
[{"$nulls":4},"07:30:00"]
[null,"הצג לוח זמנים",null,null,"07:45:00"]
[{"$nulls":4},"08:00:00"]
[null,"בחר כדי להציג לוח זמנים יומי",null,null,"08:15:00"]
[{"$nulls":4},"08:30:00"]
[null,"בחר כדי להוסיף אירוע חדש",null,null,"08:45:00"]
[{"$nulls":4},"09:00:00"]
[{"$nulls":4},"09:15:00"]
[{"$nulls":4},"09:30:00"]
[{"$nulls":4},"09:45:00"]
[{"$nulls":4},"10:00:00"]
[{"$nulls":4},"10:15:00"]
[{"$nulls":4},"10:30:00"]
[{"$nulls":4},"10:45:00"]
[{"$nulls":4},"11:00:00"]
[{"$nulls":4},"11:15:00"]
[{"$nulls":4},"11:30:00"]
[{"$nulls":4},"11:45:00"]
[{"$nulls":4},"12:00:00"]
[{"$nulls":4},"12:15:00"]
[{"$nulls":4},"12:30:00"]
[{"$nulls":4},"12:45:00"]
[{"$nulls":4},"13:00:00"]
[{"$nulls":4},"13:15:00"]
[{"$nulls":4},"13:30:00"]
[{"$nulls":4},"13:45:00"]
[{"$nulls":4},"14:00:00"]
[{"$nulls":4},{"$f":"IFERROR(IF($E35+Increment>שעת_סיום,\"\",$E35+Increment),\"\")","v":"14:15:00"}]
[{"$nulls":4},"14:30:00"]
[{"$nulls":4},"14:45:00"]
[{"$nulls":4},"15:00:00"]
[{"$nulls":4},"15:15:00"]
[{"$nulls":4},"15:30:00"]
[{"$nulls":4},"15:45:00"]
[{"$nulls":4},"16:00:00"]
[{"$nulls":4},"16:15:00"]
[{"$nulls":4},"16:30:00"]
[{"$nulls":4},"16:45:00"]
[{"$nulls":4},"17:00:00"]
[{"$nulls":4},"17:15:00"]
[{"$nulls":4},"17:30:00"]
[{"$nulls":4},"17:45:00"]
[{"$nulls":4},"18:00:00"]
[{"$nulls":4},"18:15:00"]
[{"$nulls":4},"18:30:00"]
[{"$nulls":4},"18:45:00"]
[{"$nulls":4},"19:00:00"]
[{"$nulls":4},"19:15:00"]
[{"$nulls":4},"19:30:00"]
[{"$nulls":4},"19:45:00"]
[{"$nulls":4},"20:00:00"]
[{"$nulls":4},"20:15:00"]
[{"$nulls":4},"20:30:00"]
[{"$nulls":4},"20:45:00"]
[{"$nulls":4},"21:00:00"]
[{"$nulls":4},""]
[{"$nulls":4},""]
[{"$nulls":4},""]
[{"$nulls":4},""]
[{"$nulls":4},{"$f":"IFERROR(IF($E67+Increment>שעת_סיום,\"\",$E67+Increment),\"\")","v":""}]
[{"$nulls":4},""]
[{"$nulls":4},""]
[{"$nulls":4},""]
[{"$nulls":4},""]
[{"$nulls":4},""]
[{"$nulls":4},""]
[{"$nulls":4},""]